bitfinex/quotes_BTCUSD_20250422
["timestamp","ask_amount","ask_price","bid_price","bid_amount"]
[1745329877111,0.00053831,90289.0,90270.0,0.58878278]
[1745329877317,0.00053831,90289.0,90277.0,0.13032]
[1745329877721,0.00053831,90289.0,90278.0,0.00497368]
[1745329878247,0.00053831,90289.0,90279.0,0.00500598]
[1745329878433,0.01454085,90287.0,90279.0,0.00500598]
[1745329878615,0.11375594,90286.0,90255.0,0.13032]
[1745329878815,0.01107628,90283.0,90256.0,0.00503505]
[1745329879001,0.11375594,90282.0,90256.0,0.00503505]
[1745329879186,0.22150403,90292.0,90256.0,0.00503505]
[1745329879187,0.00053831,90289.0,90270.0,0.58878278]
[1745329879550,0.00053831,90289.0,90279.0,0.59985955]
[1745329879752,0.00053831,90289.0,90280.0,0.01107665]
[1745329880066,0.00053831,90289.0,90286.0,0.23259419]
[1745329880197,0.00053831,90289.0,90280.0,0.00505979]
[1745329880396,0.00053831,90289.0,90283.0,0.01107628]
[1745329880597,0.00053831,90289.0,90288.0,0.22151337]
[1745329880803,0.00053831,90289.0,90288.0,0.74001182]
[1745329881011,0.00053831,90289.0,90288.0,0.51849845]
[1745329881206,0.1593456,90302.0,90289.0,0.34]
[1745329881387,0.1593456,90302.0,90292.0,0.58878278]
[1745329881842,0.1593456,90302.0,90301.0,0.56148148]
[1745329882041,0.1543456,90302.0,90301.0,0.69600797]
[1745329882291,0.1543456,90302.0,90301.0,0.70078378]
[1745329882494,0.1543456,90302.0,90301.0,0.68001323]
[1745329884050,0.1543456,90302.0,90301.0,0.45853175]
[1745329884477,0.1543456,90302.0,90301.0,0.00477581]
[1745329884918,0.1543456,90302.0,90281.0,0.12752]
[1745329885202,0.1543456,90302.0,90282.0,0.00464903]
[1745329885667,0.01107431,90299.0,90282.0,0.00464903]
[1745329885876,0.01107468,90296.0,90282.0,0.00464903]
[1745329886089,0.08895659,90301.0,90280.0,0.58878278]
[1745329886299,0.1543456,90302.0,90290.0,0.58878278]
[1745329886506,0.08895659,90299.0,90281.0,0.00474715]
[1745329886704,0.01107456,90297.0,90291.0,0.004773]
[1745329886937,0.13937147,90296.0,90269.0,0.36545831]
[1745329887150,0.01107763,90272.0,90269.0,0.00013831]
[1745329887354,0.01107984,90254.0,90214.0,0.0452]
[1745329887568,0.01108094,90245.0,90214.0,0.0452]
[1745329887776,0.01108119,90243.0,90207.0,0.20632451]
[1745329888005,0.11375594,90245.0,90220.0,0.58878278]
[1745329888213,0.00835749,90243.0,90210.0,0.58878278]
[1745329888415,0.11375594,90242.0,90210.0,0.58878278]
[1745329889024,0.10675594,90242.0,90210.0,0.58878278]
[1745329889226,0.10689418,90242.0,90210.0,0.81048532]
[1745329889429,0.00013824,90242.0,90230.0,0.58878278]
[1745329889831,0.00013824,90242.0,90232.0,0.00421856]
[1745329890267,0.01108192,90237.0,90232.0,0.00421856]
[1745329890486,0.11375594,90236.0,90210.0,0.58878278]
[1745329891170,0.11375594,90236.0,90200.0,0.72726278]
[1745329891382,0.2361904,90233.0,90200.0,0.011]
[1745329891618,0.12829679,90232.0,90200.0,0.59978278]
[1745329892900,0.12829679,90232.0,90200.0,0.011]
[1745329893074,0.11375594,90232.0,90200.0,0.59978278]
[1745329893349,0.11375594,90232.0,90208.0,0.22170762]
[1745329893537,0.11375594,90232.0,90210.0,0.58878278]
[1745329893735,0.11375594,90232.0,90206.0,0.01108573]
[1745329893736,0.001,90236.0,90220.0,0.58878278]
[1745329893968,0.11375594,90235.0,90220.0,0.58878278]
[1745329894874,0.001,90236.0,90220.0,0.58878278]
[1745329895227,0.001,90236.0,90210.0,0.58878278]
[1745329895228,0.11375594,90235.0,90210.0,0.58878278]
[1745329896330,0.001,90236.0,90211.0,0.22170051]
[1745329896535,0.001,90236.0,90220.0,0.58878278]
[1745329896741,0.01108119,90243.0,90231.0,0.00044]
[1745329896918,0.16276104,90242.0,90231.0,0.00057824]
[1745329897124,0.11375594,90242.0,90231.0,0.00057824]
[1745329897521,0.11375594,90242.0,90231.0,0.00061824]
[1745329897968,0.11375594,90242.0,90231.0,0.00065824]
[1745329898256,0.11375594,90242.0,90231.0,0.00165824]
[1745329898471,0.4075,90256.0,90231.0,0.00165824]
[1745329898693,0.12756,90265.0,90240.0,0.58878278]
[1745329898901,0.12756,90265.0,90232.0,0.00504665]
[1745329898902,0.22161155,90249.0,90232.0,0.00504665]
[1745329899124,0.11375594,90248.0,90241.0,0.00509519]
[1745329899331,0.11375594,90248.0,90231.0,0.00165824]
[1745329899942,0.01108094,90245.0,90231.0,0.00165824]
[1745329900152,0.11375594,90244.0,90231.0,0.00165824]
[1745329900645,0.01454085,90237.0,90231.0,0.00165824]
[1745329900835,0.13124085,90232.0,90231.0,0.00165824]
[1745329901062,0.11375594,90232.0,90231.0,0.00165824]
[1745329901498,0.12829679,90232.0,90231.0,0.00165824]
[1745329901701,0.11375594,90232.0,90231.0,0.00165824]
[1745329902122,0.08895659,90243.0,90231.0,0.00165824]
[1745329902352,0.11375594,90242.0,90231.0,0.00065824]
[1745329902568,0.07733908,90241.0,90231.0,0.00065824]
[1745329902774,0.11375594,90240.0,90231.0,0.00065824]
[1745329903162,0.4158526,90244.0,90231.0,0.00165824]
[1745329903362,0.11375594,90243.0,90231.0,0.00165824]
[1745329903588,0.23270826,90242.0,90231.0,0.00165824]
[1745329903765,0.15145377,90241.0,90231.0,0.00165824]
[1745329904163,0.11375594,90241.0,90231.0,0.00165824]
[1745329904444,0.10675594,90241.0,90231.0,0.00165824]
[1745329904656,0.11783737,90241.0,90231.0,0.00165824]
[1745329904880,0.0083526,90244.0,90231.0,0.00165824]
[1745329905300,0.01108008,90252.0,90231.0,0.00165824]
[1745329905475,0.00820316,90244.0,90231.0,0.00165824]
[1745329905721,0.12756,90259.0,90231.0,0.00165824]
[1745329906040,0.01107812,90268.0,90232.0,0.11375594]
[1745329906264,0.01107873,90263.0,90232.0,0.11375594]
[1745329906516,0.01107885,90262.0,90232.0,0.11375594]
[1745329906694,0.01107861,90264.0,90232.0,0.11375594]
[1745329906901,0.0110791,90260.0,90231.0,0.00165824]
[1745329907142,0.1167,90263.0,90231.0,0.00165824]
[1745329907339,0.00842648,90251.0,90231.0,0.00165824]
[1745329907570,0.00842648,90251.0,90232.0,0.22165085]
[1745329907778,0.08895659,90269.0,90233.0,0.35108241]
[1745329907980,0.13686168,90267.0,90240.0,0.58878278]
[1745329908190,0.23265216,90264.0,90240.0,0.58878278]
[1745329908398,0.08895659,90259.0,90231.0,0.00165824]
[1745329908605,0.11375594,90258.0,90231.0,0.00165824]
[1745329909893,0.08895659,90247.0,90231.0,0.00165824]
[1745329910084,0.11375594,90246.0,90231.0,0.00165824]
[1745329910290,0.4075,90250.0,90231.0,0.00165824]
[1745329910765,0.04075,90249.0,90231.0,0.00165824]
[1745329911384,0.11375594,90248.0,90231.0,0.00165824]
[1745329913112,0.10675594,90248.0,90231.0,0.00165824]
[1745329913951,0.01454085,90246.0,90231.0,0.00165824]
[1745329914211,0.01454085,90244.0,90231.0,0.00165824]
[1745329914553,0.01454085,90242.0,90231.0,0.00165824]
[1745329914830,0.01454085,90240.0,90231.0,0.00165824]
[1745329915001,0.12829679,90240.0,90231.0,0.00165824]
[1745329915412,0.01454085,90239.0,90231.0,0.00165824]
[1745329916076,0.13678379,90239.0,90231.0,0.00165824]
[1745329916227,0.01454085,90237.0,90231.0,0.00165824]
[1745329918543,0.01454085,90231.0,90201.0,0.05]
[1745329918709,0.01108499,90212.0,90201.0,0.0004]
[1745329918882,0.01454085,90210.0,90201.0,0.0004]
[1745329919063,0.01454085,90216.0,90201.0,0.0004]
[1745329919465,0.01454085,90216.0,90202.0,0.00431514]
[1745329919872,0.11375594,90215.0,90201.0,0.0004]
[1745329920119,0.23045594,90214.0,90201.0,0.0004]
[1745329920298,0.11375594,90214.0,90201.0,0.0004]
[1745329920476,0.123,90223.0,90201.0,0.0004]
[1745329920692,0.12605594,90222.0,90201.0,0.3404]
[1745329920901,0.30572801,90236.0,90205.0,0.22171527]
[1745329921099,0.30572801,90236.0,90202.0,0.00436694]
[1745329921100,0.22171137,90208.0,90202.0,0.00436694]
[1745329921301,0.11228756,90207.0,90206.0,0.00439936]
[1745329921510,0.11228756,90207.0,90201.0,0.0004]
[1745329922099,0.123,90221.0,90201.0,0.0004]
[1745329922303,0.12829679,90220.0,90201.0,0.0004]
[1745329922575,0.12829679,90220.0,90201.0,0.00086166]
[1745329923725,0.01454085,90211.0,90201.0,0.00086166]
[1745329923897,0.01454085,90206.0,90201.0,0.00086166]
[1745329924105,0.11375594,90205.0,90201.0,0.00086166]
[1745329924303,0.01454085,90204.0,90201.0,0.00086166]
[1745329924503,0.01454085,90202.0,90200.0,0.00176804]
[1745329924825,0.01108598,90204.0,90200.0,0.00176804]
[1745329924826,0.12829679,90201.0,90200.0,0.00176804]
[1745329925040,0.12829679,90201.0,90200.0,0.10176804]
[1745329925270,0.12829679,90201.0,90200.0,0.10614462]
[1745329925625,0.12829679,90201.0,90200.0,0.10437658]
[1745329925855,0.12829679,90201.0,90200.0,0.03322911]
[1745329926025,0.12829679,90201.0,90200.0,0.1]
[1745329926225,0.14167506,90201.0,90200.0,0.1]
[1745329926455,0.12829679,90201.0,90200.0,0.1]
[1745329926813,0.25821622,90201.0,90200.0,0.04264267]
[1745329927018,0.1167,90193.0,90191.0,0.01563739]
[1745329927129,0.35004594,90192.0,90191.0,0.01563739]
[1745329927338,0.46674594,90192.0,90191.0,0.00499402]
[1745329927988,0.46674594,90192.0,90191.0,0.00473759]
[1745329928772,0.45974594,90192.0,90191.0,0.00473759]
[1745329929433,0.11375594,90192.0,90191.0,0.00473759]
[1745329929658,0.45220509,90192.0,90191.0,0.00477759]
[1745329929811,0.49510971,90192.0,90191.0,0.00477759]
[1745329930020,0.49510971,90192.0,90176.0,0.0008466]
[1745329930021,0.22178358,90178.0,90176.0,0.0008466]
[1745329930229,0.33554198,90177.0,90176.0,0.0008466]
[1745329930485,0.33550198,90177.0,90176.0,0.0008466]
[1745329930682,0.45854198,90177.0,90176.0,0.0008466]
[1745329931409,0.47308283,90177.0,90176.0,0.0008466]
[1745329931615,0.47308283,90177.0,90167.0,0.0008458]
[1745329931616,0.23633919,90172.0,90167.0,0.0008458]
[1745329931820,0.23633919,90172.0,90140.0,0.0008458]
[1745329931821,0.01454085,90152.0,90140.0,0.0008458]
[1745329932015,0.01454085,90150.0,90140.0,0.0008458]
[1745329932223,0.00877163,90148.0,90140.0,0.0008458]
[1745329932436,0.11375594,90147.0,90140.0,0.0008458]
[1745329932989,0.11375594,90147.0,90143.0,0.00025853]
[1745329933192,0.53058,90157.0,90143.0,0.00025853]
[1745329933417,0.00809835,90150.0,90143.0,0.00025853]
[1745329933818,0.00809835,90150.0,90147.0,0.01109299]
[1745329934018,0.04290462,90192.0,90186.0,0.1]
[1745329934342,0.11375594,90192.0,90186.0,0.1]
[1745329934680,0.22172683,90202.0,90200.0,0.1]
[1745329934962,0.11375594,90201.0,90200.0,0.1]
[1745329935305,0.11421703,90201.0,90200.0,0.1]
[1745329935949,0.00046109,90201.0,90200.0,0.1]
[1745329936367,0.00165416,90202.0,90200.0,0.1]
[1745329936586,0.0110861,90203.0,90200.0,0.1]
[1745329936799,0.01108598,90204.0,90200.0,0.1]
[1745329937031,0.01108573,90206.0,90200.0,0.1]
[1745329937230,0.08191972,90225.0,90200.0,0.1]
[1745329937615,0.01108524,90210.0,90200.0,0.1]
[1745329937842,0.01108536,90209.0,90200.0,0.1]
[1745329938020,0.01108524,90210.0,90200.0,0.1]
[1745329938021,0.00820969,90210.0,90200.0,0.1]
[1745329938365,0.01108463,90215.0,90200.0,0.1]
[1745329938796,0.01108536,90209.0,90200.0,0.1]
[1745329939010,0.01108598,90204.0,90200.0,0.1]
[1745329939207,0.01108585,90205.0,90200.0,0.1]
[1745329939414,0.11375594,90208.0,90200.0,0.1]
[1745329939622,0.2216903,90216.0,90200.0,0.1]
[1745329939825,0.00822299,90220.0,90200.0,0.11]
[1745329940042,0.0110845,90216.0,90200.0,0.11]
[1745329940496,0.00829446,90220.0,90200.0,0.1]
[1745329940701,0.11375594,90220.0,90200.0,0.1]
[1745329940897,0.00013829,90224.0,90201.0,0.00569939]
[1745329941101,0.00013829,90224.0,90201.0,0.21375594]
[1745329941333,0.00013829,90224.0,90205.0,0.34]
[1745329941479,0.00013829,90224.0,90210.0,0.58944412]
[1745329941685,0.00013829,90224.0,90210.0,0.68944412]
[1745329941887,0.00013829,90224.0,90211.0,0.11902419]
[1745329942121,0.00013829,90224.0,90211.0,0.21902419]
[1745329942292,0.00013829,90224.0,90212.0,0.34]
[1745329942486,0.00013829,90224.0,90214.0,0.34]
[1745329942810,0.00013829,90224.0,90216.0,0.34]
[1745329943008,0.00013829,90224.0,90217.0,0.11375594]
[1745329943200,0.00013829,90224.0,90218.0,0.00507218]
[1745329943419,0.00013829,90224.0,90219.0,0.11375594]
[1745329943621,0.00013829,90224.0,90219.0,0.1]
[1745329943825,0.00013829,90224.0,90220.0,0.00510453]
[1745329944025,0.00013829,90224.0,90220.0,0.10510453]
[1745329944225,0.00013829,90224.0,90221.0,0.11375594]
[1745329944426,0.00013829,90224.0,90222.0,0.00508835]
[1745329944629,0.00013829,90224.0,90222.0,0.21884429]
[1745329945319,0.00013829,90224.0,90222.0,0.06576449]
[1745329945523,0.00013829,90224.0,90223.0,0.00425]
[1745329945752,0.00013829,90224.0,90223.0,0.10425]
[1745329948996,0.00013829,90224.0,90223.0,0.1]
[1745329949197,0.22165085,90232.0,90223.0,0.1]
[1745329949397,0.1248386,90231.0,90223.0,0.1]
[1745329949604,0.11375594,90231.0,90223.0,0.1]
[1745329950006,0.001,90237.0,90224.0,0.010004]
[1745329950292,0.001,90237.0,90229.0,0.0476]
[1745329950575,0.001,90237.0,90229.0,0.1476]
[1745329950924,0.23267744,90254.0,90229.0,0.1476]
[1745329951134,0.01108008,90252.0,90229.0,0.1476]
[1745329951532,0.01108131,90242.0,90229.0,0.1]
[1745329951760,0.11375594,90241.0,90229.0,0.1]
[1745329951960,0.08895659,90243.0,90229.0,0.1]
[1745329952183,0.00855857,90244.0,90229.0,0.1]
[1745329954595,0.00855857,90244.0,90230.0,0.4770128]
[1745329954812,0.0004234,90244.0,90230.0,1.10746874]
[1745329955488,0.0004234,90244.0,90230.0,0.5167]
[1745329956982,0.22159739,90254.0,90230.0,0.5167]
[1745329957152,0.00849875,90244.0,90230.0,0.5167]
[1745329957371,0.12483578,90254.0,90230.0,0.5167]
[1745329957745,0.11375594,90254.0,90230.0,0.5167]
[1745329957943,0.00013839,90256.0,90231.0,0.05167]
[1745329958151,0.00013839,90256.0,90241.0,0.0969]
[1745329958352,0.00013839,90256.0,90241.0,0.1969]
[1745329958596,0.00013839,90256.0,90244.0,0.22162085]
[1745329958803,0.00013839,90256.0,90246.0,0.34]
[1745329959002,0.00013839,90256.0,90247.0,0.15541357]
[1745329959347,0.00013839,90256.0,90247.0,0.25541357]
[1745329959546,0.00013839,90256.0,90248.0,0.4167]
[1745329959750,0.00013839,90256.0,90250.0,0.34]
[1745329959951,0.00013839,90256.0,90251.0,0.11375594]
[1745329960153,0.00013839,90256.0,90251.0,0.21375594]
[1745329961445,0.00013839,90256.0,90251.0,0.1]
[1745329962477,0.00013839,90256.0,90251.0,0.10004]
[1745329964767,0.01107984,90254.0,90251.0,0.10004]
[1745329964915,0.11375594,90253.0,90251.0,0.10004]
[1745329965300,0.335356,90253.0,90251.0,0.10004]
[1745329965505,0.01454085,90252.0,90251.0,0.10004]
[1745329965714,0.87579679,90252.0,90251.0,0.04099303]
[1745329965916,0.57615486,90247.0,90246.0,4e-05]
[1745329966136,0.6899108,90247.0,90246.0,0.10004]
[1745329966346,0.6899108,90247.0,90205.0,0.0977]
[1745329966347,0.01454085,90224.0,90205.0,0.0499]
[1745329966573,0.11375594,90224.0,90220.0,0.05141987]
[1745329967565,0.01454085,90237.0,90220.0,0.05141987]
[1745329967774,0.11375594,90236.0,90220.0,0.05141987]
[1745329968184,0.01108131,90242.0,90220.0,0.05141987]
[1745329968388,0.01108156,90240.0,90220.0,0.05141987]
[1745329968617,0.11375594,90239.0,90220.0,0.05141987]
[1745329968826,0.01651675,90255.0,90221.0,0.50365594]
[1745329969028,0.00113831,90253.0,90225.0,0.26946559]
[1745329969232,0.00113831,90253.0,90226.0,0.33542094]
[1745329969435,0.00113831,90253.0,90240.0,0.4770128]
[1745329969657,0.00113831,90253.0,90240.0,0.05137987]
[1745329970092,0.00944387,90253.0,90240.0,0.05137987]
[1745329970302,0.00113831,90253.0,90240.0,0.05137987]
[1745329970735,0.02451856,90253.0,90240.0,0.05137987]
[1745329970951,0.00113831,90253.0,90240.0,0.05137987]
[1745329971367,0.01108045,90249.0,90240.0,0.05137987]
[1745329971570,0.12483651,90248.0,90240.0,0.05137987]
[1745329971774,0.34645002,90248.0,90240.0,0.05137987]
[1745329971989,0.22162841,90242.0,90240.0,0.05137987]
[1745329972179,0.36378529,90241.0,90240.0,0.05137987]
[1745329972382,0.14215655,90241.0,90240.0,0.05137987]
[1745329972586,0.02039907,90253.0,90240.0,0.05137987]
[1745329972796,0.0110802,90251.0,90240.0,0.05137987]
[1745329972999,0.11375594,90250.0,90240.0,0.05137987]
[1745329973177,0.00931911,90253.0,90240.0,0.05137987]
[1745329973385,0.11375594,90249.0,90240.0,0.05137987]
[1745329973774,0.01454085,90245.0,90240.0,0.05137987]
[1745329973981,0.01108119,90243.0,90240.0,0.05137987]
[1745329974181,0.01454085,90252.0,90240.0,0.05137987]
[1745329974365,0.11375594,90251.0,90240.0,0.05137987]
[1745329974569,0.00931911,90253.0,90240.0,0.05137987]
[1745329974772,0.12307505,90253.0,90240.0,0.05137987]
[1745329975173,0.12829679,90252.0,90240.0,0.05137987]
[1745329975462,0.01107971,90255.0,90240.0,0.05237987]
[1745329975664,0.01107971,90255.0,90240.0,0.05251818]
[1745329975875,0.0110802,90251.0,90240.0,0.05251818]
[1745329976117,0.01107971,90255.0,90240.0,0.05251818]
[1745329976344,0.23267934,90253.0,90240.0,0.05251818]
[1745329976622,0.12483602,90252.0,90240.0,0.05251818]
[1745329976829,0.11375594,90252.0,90240.0,0.05251818]
[1745329976980,0.12483602,90252.0,90240.0,0.05251818]
[1745329977182,0.11375594,90252.0,90240.0,0.05251818]
[1745329977387,0.23268845,90250.0,90240.0,0.05251818]
[1745329977587,0.34643906,90252.0,90240.0,0.05251818]
[1745329977809,0.11375594,90252.0,90240.0,0.05251818]
[1745329978651,0.0256202,90258.0,90240.0,0.05251818]
[1745329978839,0.23267516,90255.0,90240.0,0.05251818]
[1745329979051,0.0082435,90259.0,90240.0,0.05251818]
[1745329979293,0.22160756,90250.0,90240.0,0.05251818]
[1745329979510,0.23268508,90251.0,90240.0,0.05251818]
[1745329979709,0.01108082,90246.0,90240.0,0.05251818]
[1745329979901,0.01454085,90241.0,90240.0,0.05251818]
[1745329980124,0.01454085,90248.0,90240.0,0.05251818]
[1745329980334,0.0110807,90247.0,90240.0,0.05251818]
[1745329980462,0.01454085,90247.0,90240.0,0.05251818]
[1745329980865,0.22161647,90246.0,90240.0,0.05251818]
[1745329981066,0.24723505,90248.0,90240.0,0.05251818]
[1745329981295,0.01454085,90241.0,90240.0,0.05251818]
[1745329981905,0.68992553,90241.0,90240.0,0.04144824]
[1745329982128,0.68992553,90241.0,90240.0,0.04698321]
[1745329982129,0.13338085,90241.0,90240.0,0.04698321]
[1745329982331,0.23616959,90241.0,90240.0,0.04698321]
[1745329982533,0.13338085,90241.0,90240.0,0.04698321]
[1745329982855,0.01107971,90255.0,90240.0,0.04698321]
[1745329983060,0.01107935,90258.0,90252.0,0.0458449]
[1745329983061,0.11884,90258.0,90252.0,0.0458449]
[1745329983270,0.22159928,90253.0,90252.0,0.0458449]
[1745329983475,0.68989607,90253.0,90252.0,0.0458449]
[1745329983704,0.68989607,90253.0,90240.0,0.00113831]
[1745329983705,0.23616959,90241.0,90240.0,0.00113831]
[1745329983904,0.34992553,90241.0,90240.0,0.00113831]
[1745329984312,0.43145926,90241.0,90240.0,0.00113831]
[1745329985276,0.34992553,90241.0,90240.0,0.00113831]
[1745329985678,0.12829679,90241.0,90240.0,0.00113831]
[1745329986087,0.34992553,90241.0,90240.0,0.00113831]
[1745329986499,0.11375594,90241.0,90240.0,0.00113831]
[1745329986706,0.33538468,90241.0,90240.0,0.00113831]
[1745329987135,0.3529859,90241.0,90240.0,0.00113831]
[1745329987702,0.01108303,90228.0,90220.0,4e-05]
[1745329988072,0.22167571,90222.0,90220.0,4e-05]
[1745329988238,0.22167571,90222.0,90200.0,4e-05]
[1745329988239,0.01108475,90214.0,90200.0,4e-05]
[1745329988441,0.0110845,90216.0,90200.0,4e-05]
[1745329988442,0.01454085,90213.0,90200.0,4e-05]
[1745329988641,0.01108401,90220.0,90200.0,4e-05]
[1745329988844,0.11375594,90221.0,90200.0,4e-05]
[1745329989044,0.01154989,90220.0,90200.0,4e-05]
[1745329989252,0.11375594,90221.0,90200.0,4e-05]
[1745329989253,0.01108413,90219.0,90200.0,4e-05]
[1745329989452,0.22172379,90203.0,90200.0,4e-05]
[1745329989681,0.56172703,90201.0,90200.0,4e-05]
[1745329989920,0.56174669,90193.0,90183.0,0.000847]
[1745329990072,0.22176882,90184.0,90183.0,0.000847]
[1745329990271,0.33552476,90184.0,90183.0,0.000847]
[1745329990676,0.35006561,90184.0,90183.0,0.000847]
[1745329991112,0.69006561,90184.0,90183.0,0.000847]
[1745329991325,0.57631705,90181.0,90180.0,4e-05]
[1745329991482,0.23633919,90172.0,90171.0,0.0004]
[1745329991687,0.35009513,90172.0,90171.0,0.00086109]
[1745329991883,0.12829679,90172.0,90171.0,0.00086109]
[1745329992085,0.01660301,90173.0,90171.0,0.00086109]
[1745329992320,0.23288462,90174.0,90171.0,0.00086109]
[1745329992546,0.22181802,90164.0,90160.0,4e-05]
[1745329992725,0.11375594,90173.0,90163.0,0.00098489]
[1745329992927,0.01601081,90173.0,90163.0,0.00098489]
[1745329993130,0.02562941,90183.0,90163.0,0.00098489]
[1745329993336,0.22178948,90176.0,90163.0,0.00098489]
[1745329993505,0.02562941,90183.0,90163.0,0.00098489]
[1745329993506,0.00849282,90184.0,90163.0,0.00098489]
[1745329993707,0.01108807,90187.0,90163.0,0.00098489]
[1745329993925,0.23227636,90211.0,90164.0,0.16155971]
[1745329994124,0.23283498,90193.0,90165.0,0.0939]
[1745329994327,0.23282741,90196.0,90166.0,0.11375594]
[1745329994529,0.00817984,90196.0,90166.0,0.11841188]
[1745329994728,0.01108622,90202.0,90166.0,0.11841188]
[1745329994729,0.23227636,90225.0,90180.0,0.4770128]
[1745329994905,0.23227636,90225.0,90187.0,0.11375594]
[1745329995114,0.23227636,90225.0,90184.0,0.4339]
[1745329995115,0.0004,90229.0,90200.0,0.4770128]
[1745329995318,0.0004,90229.0,90212.0,0.0478]
[1745329995520,0.0004,90229.0,90213.0,0.0461]
[1745329995744,0.0004,90229.0,90213.0,0.05061195]
[1745329995943,0.0004,90229.0,90214.0,0.12359714]
[1745329996378,0.0110802,90251.0,90215.0,0.00446503]
[1745329996591,0.42895659,90249.0,90216.0,0.11375594]
[1745329996793,0.42895659,90249.0,90217.0,0.34221679]
[1745329996794,0.0087903,90249.0,90217.0,0.34221679]
[1745329997005,0.0087903,90249.0,90230.0,0.4770128]
[1745329997212,0.0087903,90249.0,90231.0,0.13335422]
[1745329997427,0.0087903,90249.0,90231.0,0.13771047]
[1745329997774,0.00046129,90249.0,90231.0,0.13771047]
[1745329998781,0.22165085,90232.0,90231.0,0.00435625]
[1745329999030,0.22165085,90232.0,90182.0,0.4167]
[1745329999031,0.08895659,90238.0,90206.0,0.11888]
[1745329999239,0.08895659,90248.0,90214.0,0.11597287]
[1745329999460,0.08895659,90248.0,90214.0,0.11375594]
[1745329999632,0.08895659,90248.0,90215.0,0.06846687]
[1745329999830,0.08895659,90248.0,90217.0,0.2216877]
[1745330000031,0.00046129,90249.0,90240.0,0.22162985]
[1745330000242,0.00046129,90249.0,90231.0,0.34]
[1745330000243,0.00046129,90249.0,90241.0,0.11375594]
[1745330000623,0.00046129,90249.0,90236.0,0.11888]
[1745330000829,0.00046129,90249.0,90216.0,0.34]
[1745330001051,0.00046129,90249.0,90224.0,0.11888]
[1745330001199,0.00046129,90249.0,90225.0,0.11375594]
[1745330002185,0.01108119,90243.0,90216.0,0.4167]
[1745330002389,0.23269834,90246.0,90218.0,0.11888]
[1745330002566,0.00046129,90249.0,90219.0,0.11375594]
[1745330002796,0.00046129,90249.0,90220.0,0.05647766]
[1745330003002,0.00046129,90249.0,90221.0,0.11375594]
[1745330003381,0.01108106,90244.0,90221.0,0.11375594]
[1745330003588,0.0110807,90247.0,90221.0,0.11375594]
[1745330003806,0.00046129,90249.0,90221.0,0.11375594]
[1745330004006,0.00046129,90249.0,90222.0,0.05304559]
[1745330004223,0.33346129,90252.0,90223.0,0.11375594]
[1745330004396,0.3335996,90252.0,90223.0,0.11375594]
[1745330004559,0.0110802,90251.0,90223.0,0.11375594]
[1745330004763,0.01108045,90249.0,90223.0,0.11375594]
[1745330004971,0.01121839,90252.0,90224.0,0.02856415]
[1745330005210,0.0110802,90251.0,90225.0,0.11375594]
[1745330005623,0.01108082,90246.0,90225.0,0.11375594]
[1745330005826,0.01108045,90249.0,90225.0,0.11375594]
[1745330006200,0.31056188,90251.0,90225.0,0.11375594]
[1745330006386,0.01108057,90248.0,90225.0,0.11375594]
[1745330006539,0.01108045,90249.0,90225.0,0.11375594]
[1745330006738,0.08895659,90251.0,90225.0,0.11375594]
[1745330007650,0.10003679,90251.0,90225.0,0.11375594]
[1745330008074,0.2216091,90249.0,90225.0,0.11375594]
[1745330008253,0.06884337,90248.0,90225.0,0.11375594]
[1745330008450,0.0577628,90248.0,90225.0,0.11375594]
[1745330008661,0.0110807,90247.0,90225.0,0.11375594]
[1745330008887,0.01108057,90248.0,90225.0,0.11375594]
[1745330009325,0.10003679,90251.0,90225.0,0.11375594]
[1745330009499,0.01108033,90250.0,90225.0,0.11375594]
[1745330009699,0.08895659,90251.0,90226.0,0.02325959]
[1745330009876,0.0256213,90249.0,90226.0,0.02325959]
[1745330010077,0.01454085,90249.0,90226.0,0.02325959]
[1745330010322,0.01108057,90248.0,90226.0,0.02325959]
[1745330010459,0.0256213,90249.0,90226.0,0.02325959]
[1745330010666,0.00013831,90252.0,90227.0,0.11375594]
[1745330010891,0.01108008,90252.0,90228.0,0.35370155]
[1745330011164,0.01107996,90253.0,90228.0,0.11375594]
[1745330011370,0.01108057,90248.0,90228.0,0.11421723]
[1745330011597,0.01108045,90249.0,90228.0,0.00046129]
[1745330011817,0.01107971,90255.0,90228.0,0.11421723]
[1745330012013,0.01108033,90250.0,90229.0,0.01142172]
[1745330012222,0.01108045,90249.0,90229.0,0.01142172]
[1745330012637,0.01108082,90246.0,90229.0,0.01142172]
[1745330012844,0.23268976,90249.0,90228.0,0.11421723]
[1745330013144,0.01108008,90252.0,90228.0,0.11421723]
[1745330013548,0.01108045,90249.0,90228.0,0.11421723]
[1745330013929,0.01454085,90257.0,90228.0,0.11421723]
[1745330014135,0.34642757,90256.0,90228.0,0.11421723]
[1745330014338,0.23227636,90269.0,90232.0,0.22165054]
[1745330014544,0.23227636,90269.0,90234.0,0.56164585]
[1745330014683,0.0004235,90278.0,90244.0,0.34]
[1745330014884,0.0004235,90278.0,90246.0,0.34]
[1745330015084,0.0004235,90278.0,90247.0,0.11375594]
[1745330015330,0.0004235,90278.0,90248.0,0.09177559]
[1745330015531,0.0004235,90278.0,90250.0,0.34]
[1745330015676,0.0004235,90278.0,90252.0,0.34]
[1745330015872,0.0004235,90278.0,90254.0,0.34]
[1745330016161,0.0004235,90278.0,90256.0,0.34]
[1745330016295,0.0004235,90278.0,90257.0,0.11375594]
[1745330016644,0.01107701,90277.0,90257.0,0.11375594]
[1745330016781,0.01107726,90275.0,90257.0,0.11375594]
[1745330016977,0.23261996,90276.0,90257.0,0.11375594]
[1745330017196,0.24095277,90277.0,90258.0,0.04537559]
[1745330017423,0.00833489,90277.0,90258.0,0.11375594]
[1745330017618,0.08895659,90278.0,90258.0,0.11375594]
[1745330017818,0.01107701,90277.0,90258.0,0.11375594]
[1745330018021,0.10003348,90278.0,90258.0,0.11375594]
[1745330018682,0.23261738,90277.0,90258.0,0.11375594]
[1745330018872,0.0970639,90278.0,90258.0,0.11375594]
[1745330019174,0.0970639,90278.0,90258.0,0.12013153]
[1745330019377,0.0110775,90273.0,90258.0,0.10875594]
[1745330019588,0.01107738,90274.0,90245.0,0.34]
[1745330019940,0.01107714,90276.0,90247.0,0.34]
[1745330020133,0.01107714,90276.0,90249.0,0.34]
[1745330020351,0.01107726,90275.0,90251.0,0.34]
[1745330020554,0.01107726,90275.0,90241.0,0.02052379]
[1745330020555,0.01107984,90254.0,90241.0,0.02052379]
[1745330020755,0.01107935,90258.0,90241.0,0.00013831]
[1745330020756,0.01107947,90257.0,90241.0,0.00013831]
[1745330020961,0.01107935,90258.0,90241.0,0.00013831]
[1745330021175,0.01107959,90256.0,90241.0,0.00013831]
[1745330021388,0.01108106,90244.0,90241.0,0.00013831]
[1745330021562,0.22162506,90243.0,90241.0,0.00013831]
[1745330021763,0.0110807,90247.0,90241.0,0.00013831]